[Event "*** Titled Tuesday Blitz"]
[Site "Chess.com"]
[Date "2020.11.03"]
[Round "3"]
[White "Lysiak_Poltorak"]
[Black "hungrycaterpillar4"]
[Result "0-1"]
[WhiteElo "2356"]
[BlackElo "2568"]
[TimeControl "180+1"]
[EndTime "10:31:26 PST"]
[Termination "hungrycaterpillar4 won by resignation"]

1. d4 {[%clk 0:03:00.9]} 1... d5 {[%clk 0:02:59.6]} 2. c3 {[%clk 0:03:00.1]}
2... Nf6 {[%clk 0:02:56.8]} 3. Nf3 {[%clk 0:02:56.5]} 3... Bf5 {[%clk
0:02:55.9]} 4. Bf4 {[%clk 0:02:56.5]} 4... e6 {[%clk 0:02:54.6]} 5. e3 {[%clk
0:02:52.9]} 5... h6 {[%clk 0:02:54.3]} 6. Bd3 {[%clk 0:02:52.9]} 6... Bxd3
{[%clk 0:02:53.6]} 7. Qxd3 {[%clk 0:02:53.8]} 7... Nbd7 {[%clk 0:02:53.7]} 8.
O-O {[%clk 0:02:53.6]} 8... c5 {[%clk 0:02:51.3]} 9. Nbd2 {[%clk 0:02:53.8]}
9... Qb6 {[%clk 0:02:47.7]} 10. e4 {[%clk 0:02:36.4]} 10... cxd4 {[%clk
0:02:39.3]} 11. cxd4 {[%clk 0:02:34.4]} 11... dxe4 {[%clk 0:02:39.3]} 12. Nxe4
{[%clk 0:02:33.8]} 12... Nxe4 {[%clk 0:02:39.9]} 13. Qxe4 {[%clk 0:02:34.7]}
13... Nf6 {[%clk 0:02:40.3]} 14. Qc2 {[%clk 0:02:31.4]} 14... Bd6 {[%clk
0:02:18.3]} 15. Qa4+ {[%clk 0:02:29.3]} 15... Ke7 {[%clk 0:02:18.7]} 16. Bxd6+
{[%clk 0:02:26.8]} 16... Qxd6 {[%clk 0:02:19.6]} 17. Qb5 {[%clk 0:02:04.5]}
17... Qb6 {[%clk 0:02:10.6]} 18. Qe2 {[%clk 0:01:50.1]} 18... Nd5 {[%clk
0:02:05.5]} 19. Rfe1 {[%clk 0:01:40.8]} 19... Rac8 {[%clk 0:02:02.6]} 20. Ne5
{[%clk 0:01:37.9]} 20... Rhd8 {[%clk 0:01:48.7]} 21. Qh5 {[%clk 0:01:33.8]}
21... Rf8 {[%clk 0:01:31.5]} 22. Ng6+ {[%clk 0:01:18.4]} 22... fxg6 {[%clk
0:01:20]} 23. Qxd5 {[%clk 0:01:18.2]} 23... Rc2 {[%clk 0:00:57.2]} 24. Qe5
{[%clk 0:01:14]} 24... Rfxf2 {[%clk 0:00:39.8]} 25. Qxg7+ {[%clk 0:01:13.7]}
25... Kd6 {[%clk 0:00:35.4]} 26. Kh1 {[%clk 0:00:43.6]} 26... Qc6 {[%clk
0:00:16.9]} 27. d5 {[%clk 0:00:40.1]} 27... Qxd5 {[%clk 0:00:17.1]} 28. Rad1
{[%clk 0:00:36.1]} 28... Rcd2 {[%clk 0:00:17.5]} 29. Rxd2 {[%clk 0:00:35.4]}
29... Rxd2 {[%clk 0:00:15.7]} 30. Qf8+ {[%clk 0:00:35.4]} 30... Kc6 {[%clk
0:00:13]} 31. Rc1+ {[%clk 0:00:33.6]} 31... Kb5 {[%clk 0:00:13.5]} 32. Qf1+
{[%clk 0:00:29.3]} 32... Qd3 {[%clk 0:00:10.3]} 33. Qg1 {[%clk 0:00:20.1]} 33...
b6 {[%clk 0:00:10.5]} 34. Qe1 {[%clk 0:00:12.6]} 34... Qe2 {[%clk 0:00:10.2]}
35. Qg1 {[%clk 0:00:11.3]} 35... e5 {[%clk 0:00:10.2]} 36. b3 {[%clk 0:00:10.8]}
36... e4 {[%clk 0:00:10.3]} 37. Re1 {[%clk 0:00:10.6]} 37... Qf2 {[%clk
0:00:06.7]} 38. Rxe4 {[%clk 0:00:08.1]} 38... Qxg1+ {[%clk 0:00:06.8]} 39. Kxg1
{[%clk 0:00:09]} 39... Rxa2 {[%clk 0:00:07.5]} 40. Re6 {[%clk 0:00:09.6]} 40...
Rb2 {[%clk 0:00:07]} 41. Rxg6 {[%clk 0:00:10.1]} 41... Rxb3 {[%clk 0:00:07.6]}
42. Rxh6 {[%clk 0:00:11]} 42... a5 {[%clk 0:00:08.1]} 43. g4 {[%clk 0:00:11.5]}
43... a4 {[%clk 0:00:07.7]} 44. Rh8 {[%clk 0:00:11.8]} 44... Rb4 {[%clk
0:00:05.8]} 45. h3 {[%clk 0:00:10.1]} 45... a3 {[%clk 0:00:05.7]} 46. Ra8 {[%clk
0:00:04.7]} 46... Ra4 {[%clk 0:00:06]} 47. Rc8 {[%clk 0:00:05.3]} 47... a2
{[%clk 0:00:05.8]} 48. Rc1 {[%clk 0:00:06.2]} 48... Rb4 {[%clk 0:00:05.5]} 49.
Kg2 {[%clk 0:00:04.8]} 49... Rb1 {[%clk 0:00:05.4]} 0-1

[Event "*** Titled Tuesday Blitz"]
[Site "Chess.com"]
[Date "2020.11.03"]
[Round "3"]
[White "MokshanovAlexey"]
[Black "tteshan"]
[Result "1-0"]
[WhiteElo "2583"]
[BlackElo "2367"]
[TimeControl "180+1"]
[EndTime "10:31:28 PST"]
[Termination "MokshanovAlexey won by resignation"]

1. e4 {[%clk 0:03:00.9]} 1... c5 {[%clk 0:02:58]} 2. Nf3 {[%clk 0:03:00.7]} 2...
e6 {[%clk 0:02:58.1]} 3. c3 {[%clk 0:03:00.6]} 3... d5 {[%clk 0:02:56.1]} 4.
exd5 {[%clk 0:03:00.7]} 4... Qxd5 {[%clk 0:02:56.5]} 5. Be2 {[%clk 0:02:59.9]}
5... Nf6 {[%clk 0:02:56]} 6. Na3 {[%clk 0:02:57.5]} 6... Be7 {[%clk 0:02:55.5]}
7. d4 {[%clk 0:02:57.5]} 7... O-O {[%clk 0:02:54.6]} 8. Nb5 {[%clk 0:02:57.1]}
8... Qd8 {[%clk 0:02:53.3]} 9. dxc5 {[%clk 0:02:57.3]} 9... Nbd7 {[%clk
0:02:01]} 10. c6 {[%clk 0:02:14.3]} 10... bxc6 {[%clk 0:01:59.9]} 11. Nd6 {[%clk
0:02:14.2]} 11... Nc5 {[%clk 0:01:48]} 12. Nxc8 {[%clk 0:02:12.9]} 12... Rxc8
{[%clk 0:01:46.5]} 13. Qc2 {[%clk 0:02:06.5]} 13... Qc7 {[%clk 0:01:37.9]} 14.
O-O {[%clk 0:02:06.1]} 14... Rfd8 {[%clk 0:01:37.6]} 15. Be3 {[%clk 0:01:57.4]}
15... Rd7 {[%clk 0:01:35.8]} 16. h3 {[%clk 0:01:52]} 16... Rcd8 {[%clk
0:01:34.4]} 17. Rfd1 {[%clk 0:01:51.8]} 17... g6 {[%clk 0:01:21.4]} 18. Rxd7
{[%clk 0:01:38.8]} 18... Rxd7 {[%clk 0:01:21.4]} 19. Rd1 {[%clk 0:01:39]} 19...
Rxd1+ {[%clk 0:01:18.7]} 20. Qxd1 {[%clk 0:01:38.7]} 20... Nce4 {[%clk 0:01:11]}
21. Qa4 {[%clk 0:01:11.6]} 21... Bc5 {[%clk 0:00:58.6]} 22. Bxc5 {[%clk
0:01:11.1]} 22... Nxc5 {[%clk 0:00:59]} 23. Qc4 {[%clk 0:01:11.2]} 23... Nce4
{[%clk 0:00:48.3]} 24. Nd4 {[%clk 0:01:07]} 24... Qf4 {[%clk 0:00:33.5]} 25. Bf3
{[%clk 0:00:20.4]} 25... Qc1+ {[%clk 0:00:29.3]} 26. Kh2 {[%clk 0:00:20.3]}
26... Nxf2 {[%clk 0:00:24.4]} 27. Qe2 {[%clk 0:00:14.1]} 27... N2e4 {[%clk
0:00:13.5]} 28. Bxe4 {[%clk 0:00:13.9]} 28... Qf4+ {[%clk 0:00:14]} 29. g3
{[%clk 0:00:14.4]} 29... Qxe4 {[%clk 0:00:12.5]} 30. Qxe4 {[%clk 0:00:14.9]}
30... Nxe4 {[%clk 0:00:13.4]} 31. Nxc6 {[%clk 0:00:15.6]} 31... a6 {[%clk
0:00:11.9]} 32. Kg2 {[%clk 0:00:13.5]} 32... Kf8 {[%clk 0:00:11.7]} 33. Kf3
{[%clk 0:00:13.8]} 33... Nc5 {[%clk 0:00:11.8]} 34. Ke3 {[%clk 0:00:12]} 34...
Na4 {[%clk 0:00:11]} 35. b4 {[%clk 0:00:11.2]} 35... Nxc3 {[%clk 0:00:10.8]} 36.
a3 {[%clk 0:00:09.7]} 36... Nd5+ {[%clk 0:00:11.1]} 37. Kd4 {[%clk 0:00:09.7]}
37... Ke8 {[%clk 0:00:11.4]} 38. Kc5 {[%clk 0:00:09.7]} 38... Kd7 {[%clk
0:00:10.9]} 39. Ne5+ {[%clk 0:00:09.7]} 39... Ke7 {[%clk 0:00:10.3]} 40. Nc6+
{[%clk 0:00:09.5]} 40... Ke8 {[%clk 0:00:10.2]} 41. Nb8 {[%clk 0:00:08.8]} 41...
Nc7 {[%clk 0:00:07.7]} 42. Kb6 {[%clk 0:00:08.2]} 42... Kd8 {[%clk 0:00:07.6]}
43. Nxa6 {[%clk 0:00:08.3]} 43... Nxa6 {[%clk 0:00:03.8]} 44. Kxa6 {[%clk
0:00:08.4]} 44... e5 {[%clk 0:00:03.8]} 45. b5 {[%clk 0:00:08.4]} 45... e4
{[%clk 0:00:02.3]} 46. b6 {[%clk 0:00:08.5]} 46... e3 {[%clk 0:00:02.6]} 47. b7
{[%clk 0:00:08.9]} 47... Kc7 {[%clk 0:00:02.7]} 48. Ka7 {[%clk 0:00:09.1]} 48...
e2 {[%clk 0:00:03.3]} 49. b8=Q+ {[%clk 0:00:09.5]} 49... Kd7 {[%clk 0:00:03.3]}
50. Qb1 {[%clk 0:00:10]} 50... f5 {[%clk 0:00:02.9]} 51. Qe1 {[%clk 0:00:10.4]}
51... Kd6 {[%clk 0:00:03.5]} 52. Qxe2 {[%clk 0:00:10.7]} 1-0

[Event "*** Titled Tuesday Blitz"]
[Site "Chess.com"]
[Date "2020.11.03"]
[Round "3"]
[White "geordie_derraugh"]
[Black "Ashedu66"]
[Result "0-1"]
[WhiteElo "2425"]
[BlackElo "2237"]
[TimeControl "180+1"]
[EndTime "10:31:29 PST"]
[Termination "Ashedu66 won by resignation"]

1. e4 {[%clk 0:03:00.9]} 1... e5 {[%clk 0:02:59.6]} 2. Nf3 {[%clk 0:03:00.7]}
2... Nc6 {[%clk 0:02:59.7]} 3. Bc4 {[%clk 0:03:00.9]} 3... Bc5 {[%clk
0:02:59.3]} 4. c3 {[%clk 0:02:58.4]} 4... Qe7 {[%clk 0:02:58.3]} 5. d3 {[%clk
0:02:58.1]} 5... Nf6 {[%clk 0:02:58.4]} 6. O-O {[%clk 0:02:55.2]} 6... a6 {[%clk
0:02:58.6]} 7. Bb3 {[%clk 0:02:54.3]} 7... Ba7 {[%clk 0:02:58.4]} 8. Nbd2 {[%clk
0:02:53.9]} 8... d6 {[%clk 0:02:58.2]} 9. Nc4 {[%clk 0:02:52.4]} 9... Be6 {[%clk
0:02:56.6]} 10. Bg5 {[%clk 0:02:51.5]} 10... h6 {[%clk 0:02:54.9]} 11. Bh4
{[%clk 0:02:51.1]} 11... g5 {[%clk 0:02:54.9]} 12. Bg3 {[%clk 0:02:49.7]} 12...
O-O-O {[%clk 0:02:34.4]} 13. Re1 {[%clk 0:02:45.6]} 13... Rdg8 {[%clk
0:02:33.7]} 14. d4 {[%clk 0:02:45.4]} 14... Bxc4 {[%clk 0:02:31.1]} 15. Bxc4
{[%clk 0:02:44.7]} 15... h5 {[%clk 0:02:27]} 16. dxe5 {[%clk 0:02:42.5]} 16...
dxe5 {[%clk 0:02:20.5]} 17. h4 {[%clk 0:02:02.5]} 17... gxh4 {[%clk 0:02:07.6]}
18. Bxh4 {[%clk 0:02:03.4]} 18... Rg4 {[%clk 0:02:04.9]} 19. g3 {[%clk
0:01:51.1]} 19... Rhg8 {[%clk 0:01:54.1]} 20. Kf1 {[%clk 0:01:51.3]} 20... Qc5
{[%clk 0:01:33]} 21. Qe2 {[%clk 0:01:19.9]} 21... Rxe4 {[%clk 0:01:25.8]} 22.
Bxf7 {[%clk 0:01:07.3]} 22... Rxe2 {[%clk 0:01:24.2]} 23. Rxe2 {[%clk
0:01:08.2]} 23... Rf8 {[%clk 0:01:13.3]} 24. Ng5 {[%clk 0:01:05.3]} 24... Qe7
{[%clk 0:00:57.2]} 25. Bb3 {[%clk 0:00:49.5]} 25... Ng4 {[%clk 0:00:46.9]} 26.
Ne4 {[%clk 0:00:45.4]} 26... Qg7 {[%clk 0:00:35.8]} 27. Rd1 {[%clk 0:00:43.2]}
27... Ne3+ {[%clk 0:00:28.9]} 28. Rxe3 {[%clk 0:00:27]} 28... Bxe3 {[%clk
0:00:28.5]} 29. Kg2 {[%clk 0:00:27.8]} 29... Bb6 {[%clk 0:00:27.5]} 30. Rd3
{[%clk 0:00:24.9]} 30... Kb8 {[%clk 0:00:27.1]} 31. a4 {[%clk 0:00:24.2]} 31...
a5 {[%clk 0:00:26.4]} 32. Bd1 {[%clk 0:00:24.3]} 32... Rf4 {[%clk 0:00:20.8]}
33. Ng5 {[%clk 0:00:20.2]} 33... Rxh4 {[%clk 0:00:19]} 34. gxh4 {[%clk
0:00:20.1]} 34... e4 {[%clk 0:00:19.2]} 35. Rg3 {[%clk 0:00:19.5]} 35... Qe5
{[%clk 0:00:18.9]} 36. Bxh5 {[%clk 0:00:19.3]} 36... e3 {[%clk 0:00:16.9]} 37.
fxe3 {[%clk 0:00:18.6]} 37... Bxe3 {[%clk 0:00:16.5]} 38. Nf3 {[%clk 0:00:19]}
38... Qd5 {[%clk 0:00:15.2]} 39. Bg6 {[%clk 0:00:16.4]} 39... Bf4 {[%clk
0:00:14.8]} 40. Rg4 {[%clk 0:00:16.5]} 40... Bd6 {[%clk 0:00:13.7]} 41. Be4
{[%clk 0:00:16.7]} 41... Qd1 {[%clk 0:00:12.9]} 42. Bxc6 {[%clk 0:00:16.4]}
42... Qe2+ {[%clk 0:00:12.5]} 43. Kg1 {[%clk 0:00:15.4]} 43... bxc6 {[%clk
0:00:12]} 44. Rg8+ {[%clk 0:00:15.3]} 44... Kb7 {[%clk 0:00:11.8]} 45. Nd4
{[%clk 0:00:15.9]} 45... Qxb2 {[%clk 0:00:10]} 46. Rg5 {[%clk 0:00:10.7]} 46...
Qxc3 {[%clk 0:00:08.7]} 47. Nf5 {[%clk 0:00:10.9]} 47... Qc1+ {[%clk 0:00:08.2]}
48. Kg2 {[%clk 0:00:11.2]} 48... Be5 {[%clk 0:00:07.5]} 49. Kf3 {[%clk
0:00:10.7]} 49... Qc3+ {[%clk 0:00:06.9]} 50. Ne3 {[%clk 0:00:10.8]} 50... Bd4
{[%clk 0:00:06.8]} 51. Kg4 {[%clk 0:00:08.9]} 51... Qxe3 {[%clk 0:00:06.8]} 52.
Rxa5 {[%clk 0:00:08.9]} 52... Qe2+ {[%clk 0:00:06.6]} 53. Kg5 {[%clk 0:00:08.8]}
53... c5 {[%clk 0:00:06.8]} 54. Rb5+ {[%clk 0:00:08.6]} 54... Qxb5 {[%clk
0:00:06.8]} 55. axb5 {[%clk 0:00:09.5]} 55... c4 {[%clk 0:00:07.2]} 56. Kf4
{[%clk 0:00:10.1]} 56... c3 {[%clk 0:00:07.4]} 57. Kf3 {[%clk 0:00:10.4]} 57...
Bh8 {[%clk 0:00:07.4]} 0-1

[Event "*** Titled Tuesday Blitz"]
[Site "Chess.com"]
[Date "2020.11.03"]
[Round "3"]
[White "Bacyanide"]
[Black "Eloist"]
[Result "0-1"]
[WhiteElo "2414"]
[BlackElo "2249"]
[TimeControl "180+1"]
[EndTime "10:31:33 PST"]
[Termination "Eloist won on time"]

1. d4 {[%clk 0:03:00.9]} 1... e6 {[%clk 0:02:58.3]} 2. c4 {[%clk 0:03:00.3]}
2... Nf6 {[%clk 0:02:57.6]} 3. Nc3 {[%clk 0:02:59.8]} 3... Bb4 {[%clk
0:02:57.1]} 4. e3 {[%clk 0:02:59.7]} 4... O-O {[%clk 0:02:56.5]} 5. Bd2 {[%clk
0:02:59.3]} 5... b6 {[%clk 0:02:50.8]} 6. Nf3 {[%clk 0:02:58.4]} 6... Bb7 {[%clk
0:02:50.4]} 7. Bd3 {[%clk 0:02:58.6]} 7... Bxc3 {[%clk 0:02:42.9]} 8. Bxc3
{[%clk 0:02:57.9]} 8... Ne4 {[%clk 0:02:42.9]} 9. Qc2 {[%clk 0:02:46.5]} 9... f5
{[%clk 0:02:42.6]} 10. O-O-O {[%clk 0:02:24]} 10... c5 {[%clk 0:02:35.3]} 11. d5
{[%clk 0:02:22.7]} 11... exd5 {[%clk 0:02:25.4]} 12. cxd5 {[%clk 0:02:04.4]}
12... Bxd5 {[%clk 0:02:23.3]} 13. Ne5 {[%clk 0:01:53.9]} 13... Qe7 {[%clk
0:02:13.4]} 14. Bxe4 {[%clk 0:01:38.9]} 14... Bxe4 {[%clk 0:02:10.2]} 15. Qb3+
{[%clk 0:01:38.4]} 15... Qe6 {[%clk 0:01:35.2]} 16. Qxe6+ {[%clk 0:01:32.5]}
16... dxe6 {[%clk 0:01:34.9]} 17. Rd6 {[%clk 0:01:27.6]} 17... Bd5 {[%clk
0:01:25.3]} 18. f3 {[%clk 0:01:05.4]} 18... Na6 {[%clk 0:01:24.3]} 19. Rd7
{[%clk 0:01:03.8]} 19... Rfd8 {[%clk 0:01:17]} 20. Re7 {[%clk 0:00:55.9]} 20...
Re8 {[%clk 0:01:13.8]} 21. Rd7 {[%clk 0:00:49.8]} 21... Nb4 {[%clk 0:01:10.9]}
22. Bxb4 {[%clk 0:00:32.6]} 22... cxb4 {[%clk 0:01:11.8]} 23. Kb1 {[%clk
0:00:32.7]} 23... Rec8 {[%clk 0:01:07.7]} 24. b3 {[%clk 0:00:30]} 24... Rc3
{[%clk 0:01:03.7]} 25. Re1 {[%clk 0:00:29.3]} 25... a5 {[%clk 0:00:57.2]} 26. e4
{[%clk 0:00:29]} 26... fxe4 {[%clk 0:00:56.2]} 27. fxe4 {[%clk 0:00:29.9]} 27...
Bc6 {[%clk 0:00:40.1]} 28. Rc7 {[%clk 0:00:23.7]} 28... Be8 {[%clk 0:00:37.4]}
29. Rxc3 {[%clk 0:00:16.4]} 29... bxc3 {[%clk 0:00:38.3]} 30. Kc2 {[%clk
0:00:16.8]} 30... Rc8 {[%clk 0:00:38.1]} 31. Re3 {[%clk 0:00:17.1]} 31... Rc5
{[%clk 0:00:33.8]} 32. Nd3 {[%clk 0:00:14.8]} 32... Rg5 {[%clk 0:00:29.4]} 33.
Nf4 {[%clk 0:00:14.1]} 33... e5 {[%clk 0:00:27.7]} 34. Nd5 {[%clk 0:00:12]}
34... Rxg2+ {[%clk 0:00:26.9]} 35. Kxc3 {[%clk 0:00:12.9]} 35... b5 {[%clk
0:00:23.7]} 36. Rf3 {[%clk 0:00:12.3]} 36... Bf7 {[%clk 0:00:18.5]} 37. a4
{[%clk 0:00:11.5]} 37... b4+ {[%clk 0:00:17.1]} 38. Kc4 {[%clk 0:00:11.4]} 38...
Re2 {[%clk 0:00:16.4]} 39. Kb5 {[%clk 0:00:09.4]} 39... Rxe4 {[%clk 0:00:15.5]}
40. Ne7+ {[%clk 0:00:09.1]} 40... Kf8 {[%clk 0:00:15]} 41. Nf5 {[%clk
0:00:09.1]} 41... Rf4 {[%clk 0:00:14.3]} 42. Rxf4 {[%clk 0:00:05.3]} 42... exf4
{[%clk 0:00:15.2]} 43. Kxa5 {[%clk 0:00:05.9]} 43... g6 {[%clk 0:00:15.4]} 44.
Nd4 {[%clk 0:00:05.3]} 44... Bd5 {[%clk 0:00:15.3]} 45. Kxb4 {[%clk 0:00:05.5]}
45... f3 {[%clk 0:00:15.5]} 46. Nc2 {[%clk 0:00:04.3]} 46... f2 {[%clk
0:00:14.7]} 47. Ne3 {[%clk 0:00:04.9]} 47... Bg2 {[%clk 0:00:14.6]} 48. Kc5
{[%clk 0:00:04.6]} 48... f1=Q {[%clk 0:00:14.6]} 49. Nxf1 {[%clk 0:00:04.9]}
49... Bxf1 {[%clk 0:00:15.2]} 50. b4 {[%clk 0:00:05.8]} 50... g5 {[%clk
0:00:14.4]} 51. b5 {[%clk 0:00:05.8]} 51... g4 {[%clk 0:00:14]} 52. a5 {[%clk
0:00:05.7]} 52... h5 {[%clk 0:00:13.4]} 53. a6 {[%clk 0:00:05.8]} 53... h4
{[%clk 0:00:13]} 54. a7 {[%clk 0:00:02.2]} 54... Bg2 {[%clk 0:00:12.5]} 0-1

[Event "*** Titled Tuesday Blitz"]
[Site "Chess.com"]
[Date "2020.11.03"]
[Round "3"]
[White "Smile2005"]
[Black "Goryachkina"]
[Result "1-0"]
[WhiteElo "2288"]
[BlackElo "2599"]
[TimeControl "180+1"]
[EndTime "10:31:35 PST"]
[Termination "Smile2005 won by resignation"]

1. Nf3 {[%clk 0:02:50.2]} 1... d5 {[%clk 0:02:57.5]} 2. g3 {[%clk 0:02:51.1]}
2... Nc6 {[%clk 0:02:54.7]} 3. Bg2 {[%clk 0:02:50.3]} 3... e5 {[%clk 0:02:54.2]}
4. O-O {[%clk 0:02:51.2]} 4... Be6 {[%clk 0:02:51.8]} 5. d3 {[%clk 0:02:51.5]}
5... Qd7 {[%clk 0:02:49.9]} 6. Nbd2 {[%clk 0:02:50.6]} 6... f6 {[%clk 0:02:45]}
7. c4 {[%clk 0:02:50.7]} 7... d4 {[%clk 0:02:40.2]} 8. a3 {[%clk 0:02:47]} 8...
a5 {[%clk 0:02:39.6]} 9. b3 {[%clk 0:02:47.4]} 9... h5 {[%clk 0:02:37.2]} 10.
Ne4 {[%clk 0:02:44.1]} 10... Bh3 {[%clk 0:02:17.8]} 11. e3 {[%clk 0:02:38.8]}
11... Bxg2 {[%clk 0:02:15.7]} 12. Kxg2 {[%clk 0:02:38.9]} 12... h4 {[%clk
0:02:15.3]} 13. exd4 {[%clk 0:02:33.5]} 13... Nxd4 {[%clk 0:02:08.8]} 14. Nxd4
{[%clk 0:02:33.1]} 14... hxg3 {[%clk 0:01:35]} 15. Nf3 {[%clk 0:02:05.9]} 15...
Qh3+ {[%clk 0:01:33.5]} 16. Kg1 {[%clk 0:02:05.4]} 16... gxh2+ {[%clk
0:01:31.4]} 17. Kh1 {[%clk 0:02:05]} 17... O-O-O {[%clk 0:01:30.5]} 18. Ng3
{[%clk 0:01:52.4]} 18... g5 {[%clk 0:01:24.1]} 19. Qe2 {[%clk 0:01:10.8]} 19...
Ne7 {[%clk 0:01:11.9]} 20. b4 {[%clk 0:01:06.4]} 20... g4 {[%clk 0:01:09.2]} 21.
Nd2 {[%clk 0:01:03.5]} 21... Bh6 {[%clk 0:00:53.8]} 22. Nde4 {[%clk 0:00:59.9]}
22... Bf4 {[%clk 0:00:49.8]} 23. Nxf6 {[%clk 0:00:55.7]} 23... Bxg3 {[%clk
0:00:34.3]} 24. fxg3 {[%clk 0:00:53.3]} 24... Kb8 {[%clk 0:00:19.5]} 25. Qg2
{[%clk 0:00:42.1]} 25... Rxd3 {[%clk 0:00:16.5]} 26. Ne4 {[%clk 0:00:34.2]}
26... Qxg2+ {[%clk 0:00:13.1]} 27. Kxg2 {[%clk 0:00:33.6]} 27... Nf5 {[%clk
0:00:13.1]} 28. Bg5 {[%clk 0:00:31.4]} 28... Nd4 {[%clk 0:00:10.8]} 29. Rad1
{[%clk 0:00:20.3]} 29... Rxd1 {[%clk 0:00:09.8]} 30. Rxd1 {[%clk 0:00:19.6]}
30... axb4 {[%clk 0:00:09.6]} 31. axb4 {[%clk 0:00:18.6]} 31... Rh5 {[%clk
0:00:09.4]} 32. Rh1 {[%clk 0:00:17.9]} 32... Nf3 {[%clk 0:00:09.2]} 33. Be3
{[%clk 0:00:17.8]} 33... Rh8 {[%clk 0:00:07.1]} 34. Nf6 {[%clk 0:00:17.5]} 34...
Rd8 {[%clk 0:00:04.6]} 35. Nxg4 {[%clk 0:00:17.5]} 35... e4 {[%clk 0:00:03.5]}
36. Nxh2 {[%clk 0:00:16.4]} 36... Rd3 {[%clk 0:00:02.3]} 37. Nxf3 {[%clk
0:00:16.7]} 37... Rxe3 {[%clk 0:00:02.7]} 38. Ne5 {[%clk 0:00:16.6]} 38... Re2+
{[%clk 0:00:03]} 39. Kf1 {[%clk 0:00:16.3]} 39... Rb2 {[%clk 0:00:02.7]} 40. b5
{[%clk 0:00:15.4]} 40... Rb1+ {[%clk 0:00:02.6]} 41. Kg2 {[%clk 0:00:15.3]}
41... Rb2+ {[%clk 0:00:03.1]} 42. Kh3 {[%clk 0:00:15.2]} 42... e3 {[%clk
0:00:03.1]} 43. Re1 {[%clk 0:00:15.4]} 43... e2 {[%clk 0:00:03.2]} 44. Kg4
{[%clk 0:00:15.3]} 44... c6 {[%clk 0:00:02.9]} 45. bxc6 {[%clk 0:00:14.9]} 45...
bxc6 {[%clk 0:00:03.8]} 46. Nxc6+ {[%clk 0:00:15.4]} 46... Kc7 {[%clk
0:00:04.2]} 47. Ne5 {[%clk 0:00:15.6]} 47... Kd6 {[%clk 0:00:03.3]} 48. Nd3
{[%clk 0:00:15.4]} 48... Rd2 {[%clk 0:00:03.4]} 49. Nf4 {[%clk 0:00:15.4]} 49...
Rd4 {[%clk 0:00:03.5]} 50. Rxe2 {[%clk 0:00:15.1]} 50... Rxc4 {[%clk 0:00:03.8]}
51. Rd2+ {[%clk 0:00:15.3]} 51... Ke7 {[%clk 0:00:03.6]} 52. Kf3 {[%clk
0:00:15.6]} 1-0

[Event "*** Titled Tuesday Blitz"]
[Site "Chess.com"]
[Date "2020.11.03"]
[Round "3"]
[White "almo64"]
[Black "hansen"]
[Result "0-1"]
[WhiteElo "2698"]
[BlackElo "2945"]
[TimeControl "180+1"]
[EndTime "10:31:36 PST"]
[Termination "hansen won on time"]

1. e4 {[%clk 0:03:00.9]} 1... c5 {[%clk 0:02:56]} 2. Nc3 {[%clk 0:03:00.4]} 2...
e6 {[%clk 0:02:55.8]} 3. Nge2 {[%clk 0:02:59.5]} 3... a6 {[%clk 0:02:55.8]} 4.
d4 {[%clk 0:02:58.4]} 4... cxd4 {[%clk 0:02:55.7]} 5. Qxd4 {[%clk 0:02:58.7]}
5... Nc6 {[%clk 0:02:54.9]} 6. Qd2 {[%clk 0:02:58.2]} 6... Nf6 {[%clk
0:02:50.9]} 7. b3 {[%clk 0:02:57.5]} 7... Bb4 {[%clk 0:02:47.5]} 8. f3 {[%clk
0:02:56.9]} 8... d5 {[%clk 0:02:47.6]} 9. a3 {[%clk 0:02:56.9]} 9... Ba5 {[%clk
0:02:47.6]} 10. b4 {[%clk 0:02:56.9]} 10... Bc7 {[%clk 0:02:46.7]} 11. exd5
{[%clk 0:02:54.4]} 11... exd5 {[%clk 0:02:44]} 12. Bb2 {[%clk 0:02:49.4]} 12...
d4 {[%clk 0:02:30.3]} 13. Na4 {[%clk 0:02:48.5]} 13... Nd5 {[%clk 0:02:26.5]}
14. O-O-O {[%clk 0:02:23.7]} 14... O-O {[%clk 0:02:16.8]} 15. Kb1 {[%clk
0:02:05.6]} 15... Ne3 {[%clk 0:02:12.8]} 16. Rc1 {[%clk 0:02:05.8]} 16... Bf5
{[%clk 0:01:31.7]} 17. Ng3 {[%clk 0:01:16.4]} 17... Bg6 {[%clk 0:01:31.6]} 18.
Nc5 {[%clk 0:01:11]} 18... b5 {[%clk 0:01:27.8]} 19. Nb3 {[%clk 0:00:59.3]}
19... Bf4 {[%clk 0:01:08.4]} 20. Ne2 {[%clk 0:00:49]} 20... Bh6 {[%clk
0:00:59.5]} 21. f4 {[%clk 0:00:31.5]} 21... Nxc2 {[%clk 0:00:50]} 22. Rxc2
{[%clk 0:00:28.6]} 22... d3 {[%clk 0:00:50.4]} 23. Rc1 {[%clk 0:00:03.4]} 23...
dxe2+ {[%clk 0:00:48.6]} 24. Ka2 {[%clk 0:00:02.6]} 24... Qxd2 {[%clk 0:00:38]}
25. Nxd2 {[%clk 0:00:02.6]} 25... exf1=Q {[%clk 0:00:36]} 26. Rhxf1 {[%clk
0:00:03]} 26... Ne7 {[%clk 0:00:32.4]} 27. g4 {[%clk 0:00:03.4]} 27... f6 {[%clk
0:00:29.2]} 28. h4 {[%clk 0:00:03.5]} 28... Rfd8 {[%clk 0:00:20.8]} 29. Nb3
{[%clk 0:00:03.9]} 29... Bf7 {[%clk 0:00:17.8]} 30. g5 {[%clk 0:00:02.2]} 30...
Rd3 {[%clk 0:00:17.3]} 31. Rc3 {[%clk 0:00:01.8]} 31... Rxc3 {[%clk 0:00:14.7]}
32. Bxc3 {[%clk 0:00:01.7]} 32... Rd8 {[%clk 0:00:12.2]} 33. Kb2 {[%clk
0:00:02]} 33... Rd3 {[%clk 0:00:10.2]} 34. gxh6 {[%clk 0:00:02.3]} 34... Bxb3
{[%clk 0:00:10.3]} 35. Kxb3 {[%clk 0:00:02.4]} 35... Nd5 {[%clk 0:00:10.8]} 36.
Rc1 {[%clk 0:00:02.4]} 36... gxh6 {[%clk 0:00:08.1]} 37. Kb2 {[%clk 0:00:02.8]}
37... Kf7 {[%clk 0:00:07.9]} 38. Be1 {[%clk 0:00:03]} 38... Re3 {[%clk
0:00:07.7]} 39. Bf2 {[%clk 0:00:03.4]} 39... Re2+ {[%clk 0:00:08.1]} 40. Rc2
{[%clk 0:00:04.3]} 40... Rxc2+ {[%clk 0:00:08.4]} 41. Kxc2 {[%clk 0:00:05.1]}
41... Nxf4 {[%clk 0:00:09]} 42. Kc3 {[%clk 0:00:06]} 42... Ke6 {[%clk
0:00:09.4]} 43. Kd4 {[%clk 0:00:06.2]} 43... h5 {[%clk 0:00:09.2]} 44. Be3
{[%clk 0:00:06.7]} 44... Nd5 {[%clk 0:00:09.1]} 45. Bd2 {[%clk 0:00:06.8]} 45...
Kd6 {[%clk 0:00:09.3]} 46. Be1 {[%clk 0:00:06.7]} 46... Ne7 {[%clk 0:00:08.5]}
47. Bg3+ {[%clk 0:00:06.8]} 47... Kc6 {[%clk 0:00:09]} 48. Bf2 {[%clk
0:00:07.1]} 48... Nf5+ {[%clk 0:00:04.8]} 49. Ke4 {[%clk 0:00:07.3]} 49... Nd6+
{[%clk 0:00:05.3]} 50. Kd4 {[%clk 0:00:07.8]} 50... Nc4 {[%clk 0:00:05.1]} 51.
Ke4 {[%clk 0:00:07.3]} 51... Kd6 {[%clk 0:00:04.2]} 52. Kf5 {[%clk 0:00:03.7]}
52... Ke7 {[%clk 0:00:04.3]} 53. Bc5+ {[%clk 0:00:03.9]} 53... Kf7 {[%clk
0:00:04.6]} 54. Ke4 {[%clk 0:00:04.3]} 54... Ke6 {[%clk 0:00:03.3]} 55. a4
{[%clk 0:00:02.3]} 55... bxa4 {[%clk 0:00:03.4]} 56. Kd4 {[%clk 0:00:02.5]}
56... Ne5 {[%clk 0:00:03.8]} 0-1